[Event "Betsys MČR v online bleskovém šachu 2021"]
[Site "Chess.com"]
[Date "2021.04.17"]
[Round "11"]
[White "BetsysBetting"]
[Black "KajaOl"]
[Result "0-1"]
[WhiteElo "1974"]
[BlackElo "2244"]
[TimeControl "180+1"]
[EndTime "10:49:42 PDT"]
[Termination "Uživatel KajaOl zvítězil na čas"]

1. e4 {[%clk 0:03:00.9]} 1... Nf6 {[%clk 0:03:00.9]} 2. d3 {[%clk 0:02:59.7]}
2... e5 {[%clk 0:03:00.5]} 3. Nf3 {[%clk 0:02:56.2]} 3... Nc6 {[%clk 0:02:59.9]}
4. Nbd2 {[%clk 0:02:49.7]} 4... Bc5 {[%clk 0:02:51]} 5. Be2 {[%clk 0:02:48.9]}
5... O-O {[%clk 0:02:49.9]} 6. O-O {[%clk 0:02:48.2]} 6... d5 {[%clk 0:02:46.6]}
7. c3 {[%clk 0:02:48.1]} 7... h6 {[%clk 0:02:42.4]} 8. b4 {[%clk 0:02:47]} 8...
Bd6 {[%clk 0:02:40.2]} 9. a3 {[%clk 0:02:24.3]} 9... Re8 {[%clk 0:02:36.9]} 10.
Bb2 {[%clk 0:02:24.2]} 10... Bg4 {[%clk 0:02:27.5]} 11. h3 {[%clk 0:02:11.7]}
11... Bh5 {[%clk 0:02:26.4]} 12. g4 {[%clk 0:02:00.2]} 12... Bg6 {[%clk
0:02:25.5]} 13. Nh4 {[%clk 0:02:00.4]} 13... Bh7 {[%clk 0:02:10.2]} 14. Nf5
{[%clk 0:01:50.8]} 14... Bf8 {[%clk 0:02:03.9]} 15. Bf3 {[%clk 0:01:34.5]} 15...
a6 {[%clk 0:01:56.4]} 16. Qe2 {[%clk 0:01:18.8]} 16... Qd7 {[%clk 0:01:46.5]}
17. Rad1 {[%clk 0:01:18.7]} 17... Rad8 {[%clk 0:01:45.6]} 18. Nb3 {[%clk
0:00:59.6]} 18... Qe6 {[%clk 0:01:18.3]} 19. c4 {[%clk 0:00:47.5]} 19... dxc4
{[%clk 0:01:05.2]} 20. dxc4 {[%clk 0:00:47.1]} 20... Qc8 {[%clk 0:00:42.1]} 21.
Nc1 {[%clk 0:00:40.5]} 21... Bxf5 {[%clk 0:00:37.9]} 22. exf5 {[%clk 0:00:37.5]}
22... Nd4 {[%clk 0:00:31.7]} 23. Bxd4 {[%clk 0:00:26.1]} 23... exd4 {[%clk
0:00:30.8]} 24. Qd2 {[%clk 0:00:19.6]} 24... c5 {[%clk 0:00:29.4]} 25. Nd3
{[%clk 0:00:17.6]} 25... b6 {[%clk 0:00:27]} 26. h4 {[%clk 0:00:12.3]} 26... Bd6
{[%clk 0:00:24.2]} 27. g5 {[%clk 0:00:09.8]} 27... hxg5 {[%clk 0:00:24.1]} 28.
hxg5 {[%clk 0:00:09.7]} 28... Ne4 {[%clk 0:00:24.3]} 29. Bxe4 {[%clk 0:00:07.5]}
29... Rxe4 {[%clk 0:00:25.2]} 30. f3 {[%clk 0:00:06.4]} 30... Rh4 {[%clk
0:00:23]} 31. f4 {[%clk 0:00:01.1]} 31... Qxf5 {[%clk 0:00:20.9]} 0-1

[Event "Betsys MČR v online bleskovém šachu 2021"]
[Site "Chess.com"]
[Date "2021.04.17"]
[Round "11"]
[White "TTCZ"]
[Black "youhy"]
[Result "1/2-1/2"]
[WhiteElo "1457"]
[BlackElo "1745"]
[TimeControl "180+1"]
[EndTime "10:49:42 PDT"]
[Termination "Remíza patem"]

1. e4 {[%clk 0:03:00.9]} 1... c5 {[%clk 0:02:59.1]} 2. Nc3 {[%clk 0:02:58.3]}
2... d6 {[%clk 0:02:57.6]} 3. f4 {[%clk 0:02:57.6]} 3... Nc6 {[%clk 0:02:56.3]}
4. Nf3 {[%clk 0:02:56.3]} 4... g6 {[%clk 0:02:56.1]} 5. d4 {[%clk 0:02:55.8]}
5... cxd4 {[%clk 0:02:54.8]} 6. Nxd4 {[%clk 0:02:55.3]} 6... Bg7 {[%clk
0:02:54]} 7. Nxc6 {[%clk 0:02:53.9]} 7... bxc6 {[%clk 0:02:53.1]} 8. e5 {[%clk
0:02:53.2]} 8... dxe5 {[%clk 0:02:46.9]} 9. Qxd8+ {[%clk 0:02:52.7]} 9... Kxd8
{[%clk 0:02:46.5]} 10. Bc4 {[%clk 0:02:52.1]} 10... e6 {[%clk 0:02:33]} 11. fxe5
{[%clk 0:02:47.9]} 11... Bxe5 {[%clk 0:02:32.3]} 12. Bg5+ {[%clk 0:02:47.8]}
12... f6 {[%clk 0:02:19]} 13. O-O-O+ {[%clk 0:02:46.7]} 13... Kc7 {[%clk
0:02:13.6]} 14. Bd2 {[%clk 0:02:45.1]} 14... Ne7 {[%clk 0:02:10.4]} 15. g3
{[%clk 0:02:43.7]} 15... Nd5 {[%clk 0:02:09.2]} 16. Nxd5+ {[%clk 0:02:42.3]}
16... exd5 {[%clk 0:02:05.1]} 17. Bb3 {[%clk 0:02:41.8]} 17... a5 {[%clk
0:02:00]} 18. a3 {[%clk 0:02:40.7]} 18... a4 {[%clk 0:01:58]} 19. Ba2 {[%clk
0:02:40.4]} 19... Bf5 {[%clk 0:01:50.2]} 20. Rhe1 {[%clk 0:02:33.2]} 20... Rab8
{[%clk 0:01:45.1]} 21. Bb4 {[%clk 0:02:31.8]} 21... c5 {[%clk 0:01:27.9]} 22.
Ba5+ {[%clk 0:02:19]} 22... Kc8 {[%clk 0:01:20.1]} 23. c3 {[%clk 0:02:09.6]}
23... d4 {[%clk 0:01:13.5]} 24. cxd4 {[%clk 0:02:00.9]} 24... Bxd4 {[%clk
0:01:11.1]} 25. Bc3 {[%clk 0:01:39.8]} 25... Bxc3 {[%clk 0:00:58.4]} 26. bxc3
{[%clk 0:01:40.7]} 26... Rd8 {[%clk 0:00:55.4]} 27. Rxd8+ {[%clk 0:01:37.9]}
27... Kxd8 {[%clk 0:00:56.3]} 28. Rd1+ {[%clk 0:01:31.7]} 28... Kc7 {[%clk
0:00:52.3]} 29. Rd5 {[%clk 0:01:28.6]} 29... Kc6 {[%clk 0:00:46.6]} 30. Rd2
{[%clk 0:01:25.6]} 30... Re8 {[%clk 0:00:43.9]} 31. Bd5+ {[%clk 0:01:24.3]}
31... Kc7 {[%clk 0:00:41.4]} 32. c4 {[%clk 0:01:22.4]} 32... Re3 {[%clk
0:00:33.7]} 33. Kb2 {[%clk 0:01:20.6]} 33... Be6 {[%clk 0:00:27.2]} 34. Bxe6
{[%clk 0:01:16.6]} 34... Rxe6 {[%clk 0:00:28.1]} 35. Kc2 {[%clk 0:01:11.5]}
35... Re3 {[%clk 0:00:26.3]} 36. Rd3 {[%clk 0:01:09.9]} 36... Rxd3 {[%clk
0:00:22.4]} 37. Kxd3 {[%clk 0:01:10.8]} 37... Kd6 {[%clk 0:00:22.9]} 38. Ke4
{[%clk 0:01:10.1]} 38... Ke6 {[%clk 0:00:22.6]} 39. g4 {[%clk 0:01:09.4]} 39...
f5+ {[%clk 0:00:19.9]} 40. gxf5+ {[%clk 0:01:09]} 40... gxf5+ {[%clk 0:00:20.6]}
41. Kf4 {[%clk 0:01:09.1]} 41... Kf6 {[%clk 0:00:21.1]} 42. h4 {[%clk
0:01:08.3]} 42... h5 {[%clk 0:00:20.2]} 43. Kf3 {[%clk 0:01:04.7]} 43... Ke5
{[%clk 0:00:20]} 44. Ke3 {[%clk 0:01:05]} 44... f4+ {[%clk 0:00:20.5]} 45. Kf3
{[%clk 0:01:03.9]} 45... Kf5 {[%clk 0:00:21.1]} 46. Kg2 {[%clk 0:01:02.1]} 46...
Kg4 {[%clk 0:00:21.7]} 47. Kf2 {[%clk 0:01:01.9]} 47... Kxh4 {[%clk 0:00:22.1]}
48. Kf3 {[%clk 0:01:02.3]} 48... Kg5 {[%clk 0:00:22.3]} 49. Kg2 {[%clk
0:01:01.3]} 49... Kg4 {[%clk 0:00:22.6]} 50. Kf2 {[%clk 0:01:01]} 50... h4
{[%clk 0:00:23]} 51. Kg2 {[%clk 0:01:00.7]} 51... f3+ {[%clk 0:00:23.4]} 52. Kf2
{[%clk 0:01:00.1]} 52... Kf4 {[%clk 0:00:24.1]} 53. Kf1 {[%clk 0:00:59.3]} 53...
Kg3 {[%clk 0:00:24.4]} 54. Kg1 {[%clk 0:00:59.8]} 54... h3 {[%clk 0:00:24.3]}
55. Kh1 {[%clk 0:00:59.5]} 55... Kf4 {[%clk 0:00:22.1]} 56. Kg1 {[%clk
0:00:58.7]} 56... Ke3 {[%clk 0:00:21.6]} 57. Kf1 {[%clk 0:00:58.5]} 57... f2
{[%clk 0:00:21.6]} 1/2-1/2

[Event "Betsys MČR v online bleskovém šachu 2021"]
[Site "Chess.com"]
[Date "2021.04.17"]
[Round "11"]
[White "Evca64"]
[Black "Hroch-hroch"]
[Result "1-0"]
[WhiteElo "2080"]
[BlackElo "2234"]
[TimeControl "180+1"]
[EndTime "10:49:43 PDT"]
[Termination "Uživatel Evca64 zvítězil po vzdání soupeře"]

1. e4 {[%clk 0:03:00.9]} 1... e5 {[%clk 0:02:58]} 2. Nf3 {[%clk 0:03:00]} 2...
Nc6 {[%clk 0:02:58.5]} 3. Bb5 {[%clk 0:02:59.1]} 3... a6 {[%clk 0:02:58.1]} 4.
Ba4 {[%clk 0:02:58.7]} 4... Nf6 {[%clk 0:02:57.8]} 5. O-O {[%clk 0:02:58.6]}
5... Nxe4 {[%clk 0:02:57.2]} 6. d4 {[%clk 0:02:55.7]} 6... Be7 {[%clk
0:02:55.8]} 7. Re1 {[%clk 0:02:20.1]} 7... b5 {[%clk 0:02:55.2]} 8. Bb3 {[%clk
0:02:18.8]} 8... d5 {[%clk 0:02:53.4]} 9. dxe5 {[%clk 0:02:01.6]} 9... Be6
{[%clk 0:02:52.3]} 10. c3 {[%clk 0:02:00.8]} 10... O-O {[%clk 0:02:46]} 11. Nbd2
{[%clk 0:01:59.8]} 11... Nc5 {[%clk 0:02:41.3]} 12. Bc2 {[%clk 0:01:54.4]} 12...
d4 {[%clk 0:02:39.2]} 13. Nb3 {[%clk 0:01:50.1]} 13... dxc3 {[%clk 0:02:10.6]}
14. bxc3 {[%clk 0:01:44.1]} 14... Na4 {[%clk 0:02:03.6]} 15. Bd2 {[%clk
0:01:17.2]} 15... Bc4 {[%clk 0:01:36.6]} 16. Nbd4 {[%clk 0:01:07.6]} 16... Nxd4
{[%clk 0:01:29]} 17. Nxd4 {[%clk 0:01:04.2]} 17... Qd7 {[%clk 0:01:14.8]} 18.
Bf5 {[%clk 0:00:51.7]} 18... Qe8 {[%clk 0:01:09.8]} 19. Qg4 {[%clk 0:00:24.9]}
19... Kh8 {[%clk 0:01:05.3]} 20. Be4 {[%clk 0:00:24.1]} 20... Rb8 {[%clk
0:00:44.5]} 21. Qh3 {[%clk 0:00:23.3]} 21... g6 {[%clk 0:00:42.3]} 22. Bh6
{[%clk 0:00:22.9]} 22... Rg8 {[%clk 0:00:40.6]} 23. Rad1 {[%clk 0:00:18.2]}
23... Bf8 {[%clk 0:00:40.3]} 24. Bxf8 {[%clk 0:00:17.2]} 24... Qxf8 {[%clk
0:00:40.2]} 25. Re3 {[%clk 0:00:15.9]} 25... Qg7 {[%clk 0:00:39.1]} 26. f4
{[%clk 0:00:14.7]} 26... Nc5 {[%clk 0:00:38.7]} 27. Bb1 {[%clk 0:00:13.7]} 27...
Rbd8 {[%clk 0:00:38.4]} 28. Rde1 {[%clk 0:00:12.9]} 28... Rge8 {[%clk 0:00:37]}
29. Qh4 {[%clk 0:00:12.6]} 29... Ne6 {[%clk 0:00:36.7]} 30. Nxe6 {[%clk
0:00:12.2]} 30... Bxe6 {[%clk 0:00:36.4]} 31. f5 {[%clk 0:00:11.4]} 31... Bxf5
{[%clk 0:00:33.1]} 32. Bxf5 {[%clk 0:00:10.9]} 32... gxf5 {[%clk 0:00:31.8]} 33.
Rg3 {[%clk 0:00:11.1]} 33... Rxe5 {[%clk 0:00:26.3]} 34. Rxg7 {[%clk 0:00:09.8]}
34... Rxe1+ {[%clk 0:00:25.1]} 35. Qxe1 {[%clk 0:00:09.9]} 1-0

[Event "Betsys MČR v online bleskovém šachu 2021"]
[Site "Chess.com"]
[Date "2021.04.17"]
[Round "11"]
[White "jarda1955"]
[Black "DrStillestein"]
[Result "1-0"]
[WhiteElo "2029"]
[BlackElo "2095"]
[TimeControl "180+1"]
[EndTime "10:49:44 PDT"]
[Termination "Uživatel jarda1955 zvítězil po vzdání soupeře"]

1. d4 {[%clk 0:03:00.9]} 1... d5 {[%clk 0:02:59.6]} 2. c4 {[%clk 0:03:00.1]}
2... c6 {[%clk 0:03:00.3]} 3. Nf3 {[%clk 0:02:58.7]} 3... Nf6 {[%clk 0:03:00.5]}
4. Nc3 {[%clk 0:02:57.9]} 4... Bf5 {[%clk 0:02:58.3]} 5. cxd5 {[%clk 0:02:54.5]}
5... cxd5 {[%clk 0:02:52.9]} 6. Qb3 {[%clk 0:02:53.9]} 6... Qd7 {[%clk
0:02:42.1]} 7. Ne5 {[%clk 0:02:50.1]} 7... Qc8 {[%clk 0:02:27.8]} 8. Nxd5 {[%clk
0:02:38.1]} 8... Be6 {[%clk 0:02:14.3]} 9. Qa4+ {[%clk 0:02:25.1]} 9... Nc6
{[%clk 0:02:10.6]} 10. Nxf6+ {[%clk 0:02:20.2]} 10... gxf6 {[%clk 0:02:09.8]}
11. Nxc6 {[%clk 0:02:19.6]} 11... bxc6 {[%clk 0:02:08]} 12. Bd2 {[%clk
0:02:16.1]} 12... Qb7 {[%clk 0:02:04.5]} 13. b3 {[%clk 0:02:10.6]} 13... Bd5
{[%clk 0:02:01.3]} 14. e3 {[%clk 0:02:02.3]} 14... Rg8 {[%clk 0:02:01.1]} 15. f3
{[%clk 0:01:58.4]} 15... e5 {[%clk 0:01:55.5]} 16. e4 {[%clk 0:01:47.8]} 16...
Be6 {[%clk 0:01:50]} 17. dxe5 {[%clk 0:01:40.2]} 17... fxe5 {[%clk 0:01:50.9]}
18. Rc1 {[%clk 0:01:39.9]} 18... Rc8 {[%clk 0:01:48.4]} 19. Ba6 {[%clk
0:01:39.2]} 19... Qb6 {[%clk 0:01:43]} 20. Bxc8 {[%clk 0:01:32.1]} 20... Bxc8
{[%clk 0:01:41.5]} 21. Qxc6+ {[%clk 0:01:26.6]} 21... Bd7 {[%clk 0:01:33.1]} 22.
Qxb6 {[%clk 0:01:19.3]} 22... axb6 {[%clk 0:01:34]} 23. g4 {[%clk 0:01:18.7]}
23... h5 {[%clk 0:01:30]} 24. h3 {[%clk 0:01:17.3]} 24... Ba3 {[%clk 0:01:23.8]}
25. Rc7 {[%clk 0:01:07.3]} 25... Kd8 {[%clk 0:01:23.3]} 26. Ra7 {[%clk
0:01:06.2]} 26... Bc5 {[%clk 0:01:22.7]} 27. Ra8+ {[%clk 0:01:04.2]} 27... Bc8
{[%clk 0:01:23.1]} 28. Ke2 {[%clk 0:00:58.5]} 28... Kc7 {[%clk 0:01:16.5]} 29.
Be3 {[%clk 0:00:45.6]} 29... Kb7 {[%clk 0:01:13]} 30. Rxc8 {[%clk 0:00:39]}
30... Rxc8 {[%clk 0:01:12.5]} 31. Rc1 {[%clk 0:00:38.3]} 31... hxg4 {[%clk
0:01:08.3]} 32. hxg4 {[%clk 0:00:36]} 32... Ka6 {[%clk 0:00:44.1]} 33. b4 {[%clk
0:00:35.3]} 33... Rh8 {[%clk 0:00:39.8]} 34. bxc5 {[%clk 0:00:33.6]} 34... Rh2+
{[%clk 0:00:39.8]} 35. Bf2 {[%clk 0:00:33.6]} 35... bxc5 {[%clk 0:00:38.2]} 36.
Rxc5 {[%clk 0:00:33.2]} 36... f6 {[%clk 0:00:37.3]} 37. Rc6+ {[%clk 0:00:32.6]}
37... Kb5 {[%clk 0:00:38.2]} 38. Rxf6 {[%clk 0:00:33]} 38... Rg2 {[%clk
0:00:35.2]} 39. Rf5 {[%clk 0:00:32.7]} 39... Kc4 {[%clk 0:00:35.9]} 40. Rxe5
{[%clk 0:00:32.6]} 40... Kb4 {[%clk 0:00:35]} 41. g5 {[%clk 0:00:29.7]} 41...
Ka3 {[%clk 0:00:33.9]} 42. f4 {[%clk 0:00:29.6]} 42... Kxa2 {[%clk 0:00:33.7]}
43. Kf3 {[%clk 0:00:29.1]} 43... Rh2 {[%clk 0:00:32.5]} 44. g6 {[%clk
0:00:28.1]} 44... Rh8 {[%clk 0:00:33]} 45. g7 {[%clk 0:00:27.4]} 45... Rf8
{[%clk 0:00:33.8]} 46. gxf8=Q {[%clk 0:00:25.7]} 1-0

[Event "Betsys MČR v online bleskovém šachu 2021"]
[Site "Chess.com"]
[Date "2021.04.17"]
[Round "11"]
[White "Chessillusion213"]
[Black "elftom"]
[Result "1-0"]
[WhiteElo "2150"]
[BlackElo "1965"]
[TimeControl "180+1"]
[EndTime "10:49:44 PDT"]
[Termination "Uživatel Chessillusion213 zvítězil na čas"]

1. d4 {[%clk 0:03:00.9]} 1... Nf6 {[%clk 0:02:58.5]} 2. c4 {[%clk 0:03:01.3]}
2... c6 {[%clk 0:02:58.1]} 3. Nc3 {[%clk 0:03:00.7]} 3... d5 {[%clk 0:02:52.7]}
4. Nf3 {[%clk 0:02:59.4]} 4... e6 {[%clk 0:02:52.3]} 5. e3 {[%clk 0:02:59.4]}
5... Nbd7 {[%clk 0:02:51.6]} 6. Qc2 {[%clk 0:02:59.4]} 6... Bd6 {[%clk 0:02:49]}
7. b3 {[%clk 0:02:59]} 7... O-O {[%clk 0:02:48.2]} 8. Be2 {[%clk 0:02:58.7]}
8... Re8 {[%clk 0:02:47.1]} 9. O-O {[%clk 0:02:58.7]} 9... b6 {[%clk 0:02:47.6]}
10. Bb2 {[%clk 0:02:57.3]} 10... Bb7 {[%clk 0:02:48]} 11. Rad1 {[%clk
0:02:52.7]} 11... e5 {[%clk 0:02:40.6]} 12. cxd5 {[%clk 0:02:44.4]} 12... e4
{[%clk 0:02:39.8]} 13. Nd2 {[%clk 0:02:11.4]} 13... cxd5 {[%clk 0:02:38.3]} 14.
Nb5 {[%clk 0:02:02]} 14... Rc8 {[%clk 0:02:35.9]} 15. Qb1 {[%clk 0:01:59]} 15...
Bb8 {[%clk 0:02:35]} 16. Rc1 {[%clk 0:01:56.5]} 16... Qe7 {[%clk 0:02:27.3]} 17.
Ba3 {[%clk 0:01:54.5]} 17... Qe6 {[%clk 0:02:11]} 18. Rxc8 {[%clk 0:01:48.7]}
18... Rxc8 {[%clk 0:02:09.7]} 19. Rc1 {[%clk 0:01:46.8]} 19... a6 {[%clk
0:02:07.5]} 20. Rxc8+ {[%clk 0:01:43.3]} 20... Bxc8 {[%clk 0:02:06.4]} 21. Qc2
{[%clk 0:01:40.7]} 21... Nf8 {[%clk 0:01:33.8]} 22. Nc7 {[%clk 0:01:25.4]} 22...
Qd7 {[%clk 0:01:31.1]} 23. Nxa6 {[%clk 0:01:19]} 23... Bxa6 {[%clk 0:01:15.7]}
24. Bxa6 {[%clk 0:01:16.7]} 24... Ng4 {[%clk 0:01:07]} 25. Nf1 {[%clk 0:01:11]}
25... Qf5 {[%clk 0:01:05]} 26. h3 {[%clk 0:01:05.3]} 26... Nf6 {[%clk
0:00:59.8]} 27. Qc8 {[%clk 0:01:03.8]} 27... Qxc8 {[%clk 0:00:57.4]} 28. Bxc8
{[%clk 0:01:03.1]} 28... N8d7 {[%clk 0:00:55.9]} 29. Ng3 {[%clk 0:00:49.3]}
29... Bxg3 {[%clk 0:00:43.8]} 30. fxg3 {[%clk 0:00:49.3]} 30... Nb8 {[%clk
0:00:26.5]} 31. Bb7 {[%clk 0:00:45.5]} 31... g5 {[%clk 0:00:16.8]} 32. Be7
{[%clk 0:00:42.3]} 32... Nbd7 {[%clk 0:00:15.8]} 33. a4 {[%clk 0:00:35.6]} 33...
g4 {[%clk 0:00:10.2]} 34. h4 {[%clk 0:00:33.4]} 34... Nh5 {[%clk 0:00:04.5]} 35.
Kf2 {[%clk 0:00:31.6]} 1-0

[Event "Betsys MČR v online bleskovém šachu 2021"]
[Site "Chess.com"]
[Date "2021.04.17"]
[Round "11"]
[White "jonvon640"]
[Black "JuliliaR"]
[Result "0-1"]
[WhiteElo "1665"]
[BlackElo "1501"]
[TimeControl "180+1"]
[EndTime "10:49:44 PDT"]
[Termination "Uživatel JuliliaR zvítězil na čas"]

1. e4 {[%clk 0:03:00.9]} 1... d5 {[%clk 0:02:59.3]} 2. exd5 {[%clk 0:02:59]}
2... Qxd5 {[%clk 0:02:59.4]} 3. Nc3 {[%clk 0:02:59.2]} 3... Qd6 {[%clk
0:02:58.9]} 4. d4 {[%clk 0:02:58.2]} 4... c6 {[%clk 0:02:58.9]} 5. Bc4 {[%clk
0:02:54.7]} 5... Nf6 {[%clk 0:02:58.5]} 6. Nf3 {[%clk 0:02:52.2]} 6... Bg4
{[%clk 0:02:57.8]} 7. Be3 {[%clk 0:02:39.4]} 7... e6 {[%clk 0:02:56.7]} 8. O-O
{[%clk 0:02:37.7]} 8... Qc7 {[%clk 0:02:54.6]} 9. h3 {[%clk 0:02:36.5]} 9... Bh5
{[%clk 0:02:53.6]} 10. Re1 {[%clk 0:02:28.6]} 10... Bd6 {[%clk 0:02:52.6]} 11.
Bd3 {[%clk 0:02:23.2]} 11... O-O {[%clk 0:02:51.1]} 12. Ne4 {[%clk 0:02:18.3]}
12... Nxe4 {[%clk 0:02:47.1]} 13. Bxe4 {[%clk 0:02:18.1]} 13... Nd7 {[%clk
0:02:45.8]} 14. c3 {[%clk 0:02:15.9]} 14... Nf6 {[%clk 0:02:44.8]} 15. Bd3
{[%clk 0:02:13.2]} 15... Bg6 {[%clk 0:02:41.4]} 16. Rc1 {[%clk 0:02:09.5]} 16...
Nd5 {[%clk 0:02:37.5]} 17. Bxg6 {[%clk 0:01:59.8]} 17... hxg6 {[%clk 0:02:33.7]}
18. a3 {[%clk 0:01:42.6]} 18... Bf4 {[%clk 0:02:28]} 19. Bxf4 {[%clk 0:01:39.9]}
19... Nxf4 {[%clk 0:02:26.1]} 20. Qd2 {[%clk 0:01:35.3]} 20... Nd5 {[%clk
0:02:19.2]} 21. c4 {[%clk 0:01:32.8]} 21... Nf6 {[%clk 0:02:18.4]} 22. d5 {[%clk
0:01:21.5]} 22... exd5 {[%clk 0:02:15]} 23. cxd5 {[%clk 0:01:21.4]} 23... Rad8
{[%clk 0:02:11.2]} 24. Qe2 {[%clk 0:01:00.7]} 24... Nxd5 {[%clk 0:02:07.4]} 25.
Qe5 {[%clk 0:00:53.8]} 25... Qb6 {[%clk 0:01:57.8]} 26. b4 {[%clk 0:00:28.2]}
26... Qa6 {[%clk 0:01:53.4]} 27. Qb2 {[%clk 0:00:19.3]} 27... Rfe8 {[%clk
0:01:47.5]} 28. Rxe8+ {[%clk 0:00:17.4]} 28... Rxe8 {[%clk 0:01:46.7]} 29. Re1
{[%clk 0:00:17.6]} 29... Rxe1+ {[%clk 0:01:39]} 30. Nxe1 {[%clk 0:00:18]} 30...
Qc4 {[%clk 0:01:38.4]} 31. Nf3 {[%clk 0:00:17]} 31... Qe4 {[%clk 0:01:34]} 32.
Kh2 {[%clk 0:00:15.7]} 32... Qf4+ {[%clk 0:01:32.6]} 33. Kg1 {[%clk 0:00:14.5]}
33... b6 {[%clk 0:01:28.8]} 34. Nd4 {[%clk 0:00:12.8]} 34... c5 {[%clk
0:01:17.4]} 35. bxc5 {[%clk 0:00:11.1]} 35... bxc5 {[%clk 0:01:15.9]} 36. Nb5
{[%clk 0:00:10.8]} 36... a6 {[%clk 0:01:11.6]} 37. Nc3 {[%clk 0:00:09.4]} 37...
Qd4 {[%clk 0:01:06]} 38. Na4 {[%clk 0:00:05.3]} 38... Qd1+ {[%clk 0:01:02.8]}
39. Kh2 {[%clk 0:00:04.1]} 39... Qxa4 {[%clk 0:01:02]} 40. Qb8+ {[%clk
0:00:03.9]} 40... Kh7 {[%clk 0:01:01.3]} 41. Qd8 {[%clk 0:00:04.1]} 41... Qf4+
{[%clk 0:00:58.1]} 42. Kg1 {[%clk 0:00:03.7]} 42... Nc3 {[%clk 0:00:51.3]} 43.
g3 {[%clk 0:00:02.8]} 43... Qd4 {[%clk 0:00:49]} 0-1

[Event "Betsys MČR v online bleskovém šachu 2021"]
[Site "Chess.com"]
[Date "2021.04.17"]
[Round "11"]
[White "pudltomik"]
[Black "Sorcercream"]
[Result "0-1"]
[WhiteElo "767"]
[BlackElo "1028"]
[TimeControl "180+1"]
[EndTime "10:49:45 PDT"]
[Termination "Uživatel Sorcercream zvítězil matem"]

1. e4 {[%clk 0:03:00.9]} 1... e5 {[%clk 0:02:55.5]} 2. Nf3 {[%clk 0:02:59.1]}
2... Nc6 {[%clk 0:02:55.1]} 3. Nc3 {[%clk 0:02:58.5]} 3... Bb4 {[%clk
0:02:51.6]} 4. Bc4 {[%clk 0:02:56.9]} 4... Nf6 {[%clk 0:02:47.2]} 5. O-O {[%clk
0:02:56.2]} 5... O-O {[%clk 0:02:46.3]} 6. Nb5 {[%clk 0:02:51.9]} 6... a6 {[%clk
0:02:38]} 7. c3 {[%clk 0:02:42.9]} 7... Bc5 {[%clk 0:02:30.7]} 8. Na3 {[%clk
0:02:34.5]} 8... b5 {[%clk 0:02:17.8]} 9. Be2 {[%clk 0:02:30.1]} 9... d5 {[%clk
0:02:07.8]} 10. b4 {[%clk 0:02:29.4]} 10... Bb6 {[%clk 0:02:04.3]} 11. Nc2
{[%clk 0:02:25.1]} 11... Nxe4 {[%clk 0:01:53.9]} 12. d4 {[%clk 0:02:12]} 12...
exd4 {[%clk 0:01:48.4]} 13. cxd4 {[%clk 0:02:10.5]} 13... Nc3 {[%clk 0:01:41.8]}
14. Qd2 {[%clk 0:02:05]} 14... Nxe2+ {[%clk 0:01:37.1]} 15. Qxe2 {[%clk
0:02:04.5]} 15... Re8 {[%clk 0:01:34]} 16. Qd2 {[%clk 0:02:01.6]} 16... Bg4
{[%clk 0:01:31.7]} 17. Re1 {[%clk 0:01:56.2]} 17... Bxf3 {[%clk 0:01:27.7]} 18.
gxf3 {[%clk 0:01:52.5]} 18... Rxe1+ {[%clk 0:01:20.2]} 19. Qxe1 {[%clk
0:01:51.4]} 19... Nxd4 {[%clk 0:01:17.7]} 20. Nxd4 {[%clk 0:01:50.4]} 20... Bxd4
{[%clk 0:01:17.4]} 21. Rb1 {[%clk 0:01:49.3]} 21... Qd7 {[%clk 0:01:07.6]} 22.
Qf1 {[%clk 0:01:46.3]} 22... Re8 {[%clk 0:01:05]} 23. Bf4 {[%clk 0:01:38.4]}
23... c6 {[%clk 0:01:01.8]} 24. Rd1 {[%clk 0:01:36.6]} 24... Bc3 {[%clk
0:00:59.6]} 25. a3 {[%clk 0:01:25.5]} 25... Qf5 {[%clk 0:00:55.7]} 26. Qg2
{[%clk 0:01:21.7]} 26... Qxf4 {[%clk 0:00:52.9]} 27. Rf1 {[%clk 0:01:20.7]}
27... Bb2 {[%clk 0:00:50]} 28. Qg3 {[%clk 0:01:14.8]} 28... Qxg3+ {[%clk
0:00:49.1]} 29. hxg3 {[%clk 0:01:14.7]} 29... Bxa3 {[%clk 0:00:49.4]} 30. Kg2
{[%clk 0:01:10.8]} 30... Bxb4 {[%clk 0:00:49.1]} 31. Rb1 {[%clk 0:01:08.3]}
31... a5 {[%clk 0:00:48]} 32. f4 {[%clk 0:01:04.6]} 32... c5 {[%clk 0:00:44.3]}
33. Rc1 {[%clk 0:01:00.2]} 33... d4 {[%clk 0:00:43.7]} 34. Rb1 {[%clk
0:00:56.2]} 34... a4 {[%clk 0:00:42.3]} 35. Rf1 {[%clk 0:00:48.9]} 35... Bc3
{[%clk 0:00:39.2]} 36. f3 {[%clk 0:00:44.9]} 36... f5 {[%clk 0:00:39]} 37. Rf2
{[%clk 0:00:43.5]} 37... a3 {[%clk 0:00:37.6]} 38. Ra2 {[%clk 0:00:40.9]} 38...
b4 {[%clk 0:00:37]} 39. g4 {[%clk 0:00:39.4]} 39... fxg4 {[%clk 0:00:35.7]} 40.
fxg4 {[%clk 0:00:39.2]} 40... d3 {[%clk 0:00:34.9]} 41. Kh3 {[%clk 0:00:38.4]}
41... d2 {[%clk 0:00:34.3]} 42. Rc2 {[%clk 0:00:37]} 42... d1=Q {[%clk
0:00:32.7]} 43. Rh2 {[%clk 0:00:35.4]} 43... Re3+ {[%clk 0:00:31.5]} 44. Kh4
{[%clk 0:00:35.1]} 44... h6 {[%clk 0:00:29.4]} 45. Kh5 {[%clk 0:00:34.5]} 45...
Kh7 {[%clk 0:00:27.9]} 46. Rh4 {[%clk 0:00:25.4]} 46... g6# {[%clk 0:00:27.7]}
0-1